bitfinex-derivatives/quotes_BTCF0:USTF0_20250903
["timestamp","ask_amount","ask_price","bid_price","bid_amount"]
[1756861918782,0.38031869,111320.0,111310.0,0.02680929]
[1756861918987,0.38031869,111320.0,111310.0,0.08692929]
[1756861921690,0.42830636,111320.0,111310.0,0.08692929]
[1756861923096,0.38031869,111320.0,111310.0,0.08692929]
[1756861923601,0.38031869,111320.0,111310.0,0.00201929]
[1756861923786,0.38031869,111320.0,111310.0,0.05131929]
[1756861923988,0.38031869,111320.0,111310.0,0.08692929]
[1756861926196,0.38031869,111320.0,111310.0,0.00201929]
[1756861927001,0.38031869,111320.0,111310.0,0.05131929]
[1756861928805,0.38031869,111320.0,111310.0,0.00201929]
[1756861930502,0.38031869,111320.0,111310.0,0.02682929]
[1756861930702,0.38031869,111320.0,111310.0,0.05133929]
[1756861931002,0.38031869,111320.0,111310.0,0.08780929]
[1756861932102,0.38031869,111320.0,111310.0,0.05133929]
[1756861932505,0.38031869,111320.0,111310.0,0.08780929]
[1756861940801,0.42830636,111320.0,111310.0,0.08780929]
[1756861941808,0.03062807,111320.0,111310.0,0.70454356]
[1756861942006,0.03062807,111320.0,111310.0,1.62209556]
[1756861942900,0.03062807,111320.0,111310.0,1.65209556]
[1756861944510,0.008,111320.0,111310.0,1.65209556]
[1756861944901,0.008,111320.0,111310.0,1.99209556]
[1756861947811,0.0066567,111320.0,111310.0,1.99209556]
[1756861948408,0.0066567,111320.0,111310.0,1.64324494]
[1756861948602,0.0066567,111320.0,111310.0,1.99209556]
[1756861949407,0.0066567,111320.0,111310.0,1.64324494]
[1756861949610,0.0066567,111320.0,111310.0,1.99209556]
[1756861951409,0.0066567,111320.0,111310.0,0.81552494]
[1756861951720,0.0074967,111320.0,111310.0,1.30317294]
[1756861951908,0.0074967,111320.0,111310.0,0.47569294]
[1756861952114,0.0074967,111320.0,111310.0,1.30317294]
[1756861952309,0.60634732,111320.0,111310.0,0.43922294]
[1756861952508,0.62894528,111320.0,111310.0,1.24219294]
[1756861952708,0.62894528,111320.0,111310.0,0.41471294]
[1756861952909,0.62894528,111320.0,111310.0,1.26614294]
[1756861953110,0.62894528,111320.0,111310.0,0.43866294]
[1756861953310,0.62894528,111320.0,111310.0,1.26614294]
[1756861953813,0.62894528,111320.0,111310.0,0.43866294]
[1756861954014,0.62894528,111320.0,111310.0,1.26614294]
[1756861955212,0.62894528,111320.0,111310.0,0.43866294]
[1756861955412,0.80352826,111320.0,111310.0,1.24219294]
[1756861956218,0.80352826,111320.0,111310.0,1.27866294]
[1756861956414,0.80352826,111320.0,111310.0,1.24219294]
[1756861956815,0.80352826,111320.0,111310.0,0.01990294]
[1756861960215,1.06524506,111320.0,111310.0,0.00181929]
[1756861960420,1.11318832,111320.0,111310.0,0.00181929]
[1756861961319,1.58135527,111320.0,111310.0,0.00181929]
[1756861962218,2.40883527,111320.0,111310.0,0.00181929]
[1756861962416,2.35883527,111320.0,111310.0,0.00181929]
[1756861962612,2.37638069,111320.0,111310.0,0.00181929]
[1756861966219,1.54890069,111320.0,111310.0,0.00181929]
[1756861966417,2.37646069,111320.0,111310.0,0.00181929]
[1756861969620,1.54890069,111320.0,111310.0,0.00181929]
[1756861969822,2.31257634,111320.0,111310.0,0.00181929]
[1756861970124,2.37650069,111320.0,111310.0,0.00181929]
[1756861970317,2.31257634,111320.0,111310.0,0.00181929]
[1756861970719,2.36040179,111320.0,111310.0,0.00181929]
[1756861972525,2.36039334,111320.0,111310.0,0.00181929]
[1756861974324,2.36039334,111320.0,111310.0,0.04842929]
[1756861974325,1.28279334,111320.0,111310.0,0.04842929]
[1756861974514,2.11043334,111320.0,111310.0,0.08402929]
[1756861975026,2.06261634,111320.0,111310.0,0.08402929]
[1756861975228,2.06261634,111320.0,111310.0,0.04842929]
[1756861975629,2.11043334,111320.0,111310.0,0.04842929]
[1756861976030,2.06261634,111320.0,111310.0,0.04842929]
[1756861976230,2.11043334,111320.0,111310.0,0.04842929]
[1756861976534,2.11043334,111320.0,111310.0,0.00181929]
[1756861976724,2.36043334,111320.0,111300.0,0.0002347]
[1756861976931,0.7851504,111310.0,111300.0,0.0002347]
[1756861977126,0.87603156,111310.0,111300.0,0.0001347]
[1756861977331,0.97984067,111310.0,111300.0,0.0001347]
[1756861977831,0.97984067,111310.0,111300.0,0.0011347]
[1756861978335,0.97984067,111310.0,111300.0,0.0021347]
[1756861978635,0.98584067,111310.0,111300.0,0.0021347]
[1756861979642,1.24755747,111310.0,111300.0,0.0021347]
[1756861979934,0.98584067,111310.0,111300.0,0.0021347]
[1756861980438,0.98584067,111310.0,111300.0,0.0253247]
[1756861980938,1.05654063,111310.0,111300.0,0.0253247]
[1756861981338,1.10435763,111310.0,111300.0,0.0253247]
[1756861981539,1.10435763,111310.0,111300.0,0.0021347]
[1756861981733,1.10435763,111310.0,111300.0,0.0487447]
[1756861986443,1.05654063,111310.0,111300.0,0.0487447]
[1756861988042,1.12046498,111310.0,111300.0,0.0487447]
[1756861989945,1.12046498,111310.0,111300.0,0.0840047]
[1756861990144,1.94802498,111310.0,111300.0,0.0840047]
[1756861990641,0.07668696,111310.0,111300.0,0.3475347]
[1756861990946,0.60012056,111310.0,111300.0,0.3475347]
[1756861991444,0.61595591,111310.0,111300.0,0.3475347]
[1756861995242,0.55203156,111310.0,111300.0,0.3475347]
[1756861995650,0.29031476,111310.0,111300.0,0.0975347]
[1756861996341,0.33840774,111310.0,111300.0,0.0975347]
[1756861997550,0.33840774,111310.0,111300.0,0.3475347]
[1756861998350,0.07669094,111310.0,111300.0,0.3475347]
[1756861998555,0.33840774,111310.0,111300.0,0.3475347]
[1756862002346,0.29031476,111310.0,111300.0,0.3475347]
[1756862002549,0.02859796,111310.0,111300.0,0.3475347]
[1756862002759,0.29031476,111310.0,111300.0,0.3475347]
[1756862008160,0.55203156,111310.0,111300.0,0.3475347]
[1756862011162,0.29031476,111310.0,111300.0,0.3475347]
[1756862013262,0.07669094,111310.0,111300.0,0.3475347]
[1756862013462,0.33840774,111310.0,111300.0,0.3475347]
[1756862014562,0.33840774,111310.0,111300.0,0.3592515]
[1756862015058,0.33840774,111310.0,111300.0,0.6092515]
[1756862015564,0.33840774,111310.0,111300.0,1.4365715]
[1756862015963,0.29031476,111310.0,111300.0,1.4365715]
[1756862017062,0.29031476,111310.0,111300.0,1.50848523]
[1756862017466,0.02859796,111310.0,111300.0,1.24676843]
[1756862018258,0.07669094,111310.0,111300.0,1.24676843]
[1756862019263,0.42559103,111310.0,111300.0,1.24676843]
[1756862021668,0.07669094,111310.0,111300.0,1.24676843]
[1756862023268,0.02859796,111310.0,111300.0,1.24676843]
[1756862023466,0.37749805,111310.0,111300.0,1.24676843]
[1756862024864,0.37749805,111310.0,111300.0,0.16944843]
[1756862025169,0.62749805,111310.0,111300.0,0.8974147]
[1756862027169,0.62749805,111310.0,111300.0,0.0975347]
[1756862027869,0.62749805,111310.0,111300.0,0.0840047]
[1756862028356,0.67559103,111310.0,111300.0,0.0840047]
[1756862030874,0.32669094,111310.0,111300.0,0.0840047]
[1756862031067,0.67559103,111310.0,111300.0,0.0840047]
[1756862032462,0.67559103,111310.0,111300.0,0.0487447]
[1756862032867,0.67559103,111310.0,111300.0,0.0849347]
[1756862033469,0.67559103,111310.0,111300.0,0.0997547]
[1756862039160,0.42559103,111310.0,111300.0,0.0997547]
[1756862039872,0.49707434,111310.0,111300.0,0.0997547]
[1756862044475,0.44898136,111310.0,111300.0,0.0997547]
[1756862049568,0.4263834,111310.0,111300.0,0.0997547]
[1756862049769,0.4489799,111310.0,111300.0,0.0997547]
[1756862052479,0.10007981,111310.0,111300.0,0.0997547]
[1756862052674,0.10007981,111310.0,111300.0,0.0021347]
[1756862052880,0.4489799,111310.0,111300.0,0.0246747]
[1756862053176,0.49707288,111310.0,111300.0,0.0291647]
[1756862053378,0.49707288,111310.0,111300.0,0.0519547]
[1756862053878,0.49707288,111310.0,111300.0,0.0875347]
[1756862054278,0.14817279,111310.0,111300.0,0.0875347]
[1756862054476,0.49707288,111310.0,111300.0,0.0875347]
[1756862054680,0.49707288,111310.0,111300.0,0.1012847]
[1756862057377,0.51290425,111310.0,111300.0,0.1012847]
[1756862061088,0.51290425,111310.0,111300.0,0.0519547]
[1756862063184,0.49709462,111310.0,111300.0,0.0875347]
[1756862068390,0.49709462,111310.0,111300.0,0.0519547]
[1756862068897,0.49709462,111310.0,111300.0,0.0875347]
[1756862069198,0.49709462,111310.0,111300.0,0.0519547]
[1756862070600,0.49709462,111310.0,111300.0,0.0875347]
[1756862072198,0.49709462,111310.0,111300.0,0.0291647]
[1756862072401,0.49709462,111310.0,111300.0,0.0066247]
[1756862073107,0.49709462,111310.0,111300.0,0.0291647]
[1756862073398,0.49709462,111310.0,111300.0,0.0519547]
[1756862073794,0.14819453,111310.0,111300.0,0.0875347]
[1756862073999,0.49709462,111310.0,111300.0,0.0519547]
[1756862074600,0.49709462,111310.0,111300.0,0.0066247]
[1756862074802,0.49709462,111310.0,111300.0,0.0519547]
[1756862075705,0.49709462,111310.0,111300.0,0.0066247]
[1756862076003,0.49709462,111310.0,111300.0,0.0291647]
[1756862076404,0.49709462,111310.0,111300.0,0.0519547]
[1756862077006,0.14819453,111310.0,111300.0,0.0519547]
[1756862077198,0.49709462,111310.0,111300.0,0.0875347]
[1756862077501,0.49709462,111310.0,111300.0,0.0519547]
[1756862079702,0.67171459,111310.0,111300.0,0.0519547]
[1756862080306,0.14819453,111310.0,111300.0,0.0519547]
[1756862080605,0.67171459,111310.0,111300.0,0.1035147]
[1756862081801,0.14819453,111310.0,111300.0,0.1035147]
[1756862082002,0.67171459,111310.0,111300.0,0.1035147]
[1756862083405,0.67171459,111310.0,111300.0,0.0888947]
[1756862085101,0.62359987,111310.0,111300.0,0.0888947]
[1756862090714,0.10007981,111310.0,111300.0,0.0888947]
[1756862090913,0.62359987,111310.0,111300.0,0.0519547]
[1756862091715,0.62359987,111310.0,111300.0,0.0888947]
[1756862092313,0.67171459,111310.0,111300.0,0.0888947]
[1756862092513,0.67171459,111310.0,111300.0,0.0519547]
[1756862093414,0.67171459,111310.0,111300.0,0.0888947]
[1756862096822,0.14819453,111310.0,111300.0,0.0888947]
[1756862097026,0.36183984,111310.0,111300.0,0.1035147]
[1756862100825,0.36183984,111310.0,111300.0,0.61527473]
[1756862102829,0.29035653,111310.0,111300.0,0.61527473]
[1756862103931,0.0285965,111310.0,111300.0,0.61527473]
[1756862104237,0.29035653,111310.0,111300.0,0.61527473]
[1756862114939,0.29035653,111310.0,111300.0,0.3535147]
[1756862118841,0.29035653,111310.0,111300.0,0.61527473]
[1756862119542,0.29035653,111310.0,111300.0,0.3535147]
[1756862119744,0.29035653,111310.0,111300.0,0.61527473]
[1756862124746,0.29035653,111310.0,111300.0,0.3535147]
[1756862124942,0.29035653,111310.0,111300.0,0.61527473]
[1756862125240,0.29035653,111310.0,111300.0,0.3535147]
[1756862125743,0.29035653,111310.0,111300.0,0.61527473]
[1756862125939,0.0285965,111310.0,111300.0,0.61527473]
[1756862126144,0.29035653,111310.0,111300.0,0.61527473]
[1756862126739,0.0285965,111310.0,111300.0,1.18703476]
[1756862128845,0.0285965,111310.0,111300.0,2.01351476]
[1756862130648,0.29035653,111310.0,111300.0,1.75175473]
[1756862130846,0.80211656,111310.0,111300.0,0.4135147]
[1756862131039,0.80211656,111310.0,111300.0,0.1419547]
[1756862131347,0.80211656,111310.0,111300.0,0.0066247]
[1756862131548,1.11211656,111310.0,111300.0,0.0066247]
[1756862131743,0.80211656,111310.0,111300.0,0.0066247]
[1756862133344,1.17211656,111310.0,111300.0,0.0066247]
[1756862134154,1.22023128,111310.0,111300.0,0.0066247]
[1756862134648,1.22023128,111310.0,111300.0,0.0291247]
[1756862134951,1.2910032,111310.0,111300.0,0.0066247]
[1756862137041,0.76748314,111310.0,111300.0,0.0066247]
[1756862137245,1.50464851,111310.0,111300.0,0.0066247]
[1756862137442,1.50464851,111310.0,111300.0,0.0021347]
[1756862137848,1.56857286,111310.0,111300.0,0.0021347]
[1756862138049,2.13329283,111310.0,111300.0,0.0021347]
[1756862138451,2.06936848,111310.0,111300.0,0.0021347]
[1756862138750,2.06936848,111310.0,111300.0,0.0066247]
[1756862139553,1.89495177,111310.0,111300.0,0.0066247]
[1756862140352,1.94305957,111310.0,111300.0,0.0066247]
[1756862140544,1.89495177,111310.0,111300.0,0.0066247]
[1756862141253,1.94305509,111310.0,111300.0,0.0066247]
[1756862145246,1.11657509,111310.0,111300.0,0.0308647]
[1756862145454,1.94309509,111310.0,111300.0,0.0308647]
[1756862145942,1.94309509,111310.0,111300.0,0.0066247]
[1756862147152,1.94309509,111310.0,111300.0,0.0308647]
[1756862147553,1.94309509,111310.0,111300.0,0.0066247]
[1756862147761,1.59399174,111310.0,111300.0,0.0550947]
[1756862147947,0.76747174,111310.0,111300.0,0.0918047]
[1756862148256,1.94309509,111310.0,111300.0,0.1057647]
[1756862148947,1.11657509,111310.0,111300.0,0.1057647]
[1756862149147,1.94309509,111310.0,111300.0,0.1057647]
[1756862151354,1.94309509,111310.0,111300.0,0.0918047]
[1756862152461,1.94309509,111310.0,111300.0,0.0550947]
[1756862152654,1.94309509,111310.0,111300.0,0.0066247]
[1756862154658,1.94309509,111310.0,111300.0,0.0021347]
[1756862156254,1.94309509,111310.0,111300.0,0.0066247]
[1756862158061,1.78998165,111310.0,111300.0,0.0066247]
[1756862158363,1.74187833,111310.0,111300.0,0.0066247]
[1756862159358,1.80580268,111310.0,111300.0,0.0066247]
[1756862160260,1.79004356,111310.0,111300.0,0.0066247]
[1756862160558,1.74187833,111310.0,111300.0,0.0066247]
[1756862161563,1.39277498,111310.0,111300.0,0.0066247]
[1756862161751,1.74187833,111310.0,111300.0,0.0066247]
[1756862163158,1.79011586,111310.0,111300.0,0.0066247]
[1756862163362,1.74187833,111310.0,111300.0,0.0066247]
[1756862165163,1.80580268,111310.0,111300.0,0.0066247]
[1756862165564,1.74187833,111310.0,111300.0,0.0066247]
[1756862166666,1.74175833,111310.0,111300.0,0.0066247]
[1756862168065,1.80568268,111310.0,111300.0,0.0066247]
[1756862168760,1.74175833,111310.0,111300.0,0.0066247]
[1756862169758,0.91535833,111310.0,111300.0,0.0066247]
[1756862169961,0.91535833,111310.0,111300.0,0.0308647]
[1756862170162,1.80568268,111310.0,111300.0,0.0308647]
[1756862170362,1.45657933,111310.0,111300.0,0.0550947]
[1756862170568,1.80568268,111310.0,111300.0,0.0066247]
[1756862171366,1.80568268,111310.0,111300.0,0.0263747]
[1756862171870,1.80568268,111310.0,111300.0,0.0505547]
[1756862172670,0.63017933,111310.0,111300.0,0.0505547]
[1756862172874,1.80564268,111310.0,111300.0,0.0505547]
[1756862173372,1.80564268,111310.0,111300.0,0.0879147]
[1756862173570,0.63017933,111310.0,111300.0,0.0879147]
[1756862173772,1.80564268,111310.0,111300.0,0.1026447]
[1756862177372,1.78999407,111310.0,111300.0,0.1026447]
[1756862177577,1.78999407,111310.0,111300.0,0.0505547]
[1756862178477,1.78999407,111310.0,111300.0,0.0879147]
[1756862179667,1.78999407,111310.0,111300.0,0.0505547]
[1756862179868,1.78995407,111310.0,111300.0,0.0505547]
[1756862180172,1.78995407,111310.0,111300.0,0.0879147]
[1756862182478,0.96363407,111310.0,111300.0,0.0879147]
[1756862182772,1.78995407,111310.0,111300.0,0.0879147]
[1756862183775,0.96363407,111310.0,111300.0,0.0879147]
[1756862183973,1.78995407,111310.0,111300.0,0.0879147]
[1756862184276,1.80560268,111310.0,111300.0,0.0879147]
[1756862188675,1.80556268,111310.0,111300.0,0.0879147]
[1756862189979,1.80556268,111310.0,111300.0,0.0505547]
[1756862191777,1.7899191,111310.0,111300.0,0.0879147]
[1756862193272,1.74163833,111310.0,111300.0,0.0879147]
[1756862194778,1.71904183,111310.0,111300.0,0.0879147]
[1756862194979,1.74181553,111310.0,111300.0,0.0879147]
[1756862195475,1.74181553,111310.0,111300.0,0.0505547]
[1756862195675,1.74181553,111310.0,111300.0,0.0021347]
[1756862195978,1.74181553,111310.0,111300.0,0.0263747]
[1756862196881,1.74181553,111310.0,111300.0,0.0505547]
[1756862197072,1.74173553,111310.0,111300.0,0.0505547]
[1756862197380,1.74173553,111310.0,111300.0,0.0879147]
[1756862197678,1.82164097,111310.0,111300.0,0.0505547]
[1756862199785,1.82164097,111310.0,111300.0,0.0870747]
[1756862200282,1.82164097,111310.0,111300.0,0.0505547]
[1756862201572,1.99612622,111310.0,111300.0,0.0505547]
[1756862201777,1.99612622,111310.0,111300.0,0.0021347]
[1756862202185,1.99612622,111310.0,111290.0,0.08873]
[1756862202386,0.58796178,111300.0,111290.0,0.08873]
[1756862202580,0.61073548,111300.0,111290.0,0.08863]
[1756862203181,0.59464386,111300.0,111290.0,0.08863]
[1756862204189,0.59764386,111300.0,111290.0,0.08963]
[1756862205188,0.59864386,111300.0,111290.0,0.08963]
[1756862206284,0.07505526,111300.0,111290.0,0.08963]
[1756862206490,1.42476386,111300.0,111290.0,0.08963]
[1756862206788,0.59864386,111300.0,111290.0,0.08963]
[1756862206990,1.42476386,111300.0,111290.0,0.08963]
[1756862207290,0.07505526,111300.0,111290.0,0.6014243]
[1756862207491,0.288568,111300.0,111290.0,0.6014243]
[1756862210083,0.288568,111300.0,111290.0,0.33963]
[1756862210292,0.288568,111300.0,111290.0,0.6014243]
[1756862210490,0.0267737,111300.0,111290.0,0.6014243]
[1756862210683,0.288568,111300.0,111290.0,0.33963]
[1756862214088,0.0267737,111300.0,111290.0,0.33963]
[1756862214287,0.5503623,111300.0,111290.0,0.33963]
[1756862214679,0.0267737,111300.0,111290.0,0.33963]
[1756862214884,0.5503623,111300.0,111290.0,0.33963]
[1756862215087,0.5503623,111300.0,111290.0,0.33514]
[1756862215891,0.5503623,111300.0,111290.0,0.33963]
[1756862219199,0.5503623,111300.0,111290.0,0.08963]
[1756862220502,0.288568,111300.0,111290.0,0.08963]
[1756862221002,0.5503623,111300.0,111290.0,0.08963]
[1756862221200,0.288568,111300.0,111290.0,0.3514243]
[1756862222394,0.0267737,111300.0,111290.0,0.3514243]
[1756862222700,0.288568,111300.0,111290.0,0.3514243]
[1756862222998,0.0267737,111300.0,111290.0,0.3514243]
[1756862223403,0.0267737,111300.0,111290.0,0.6014243]
[1756862225405,0.0267737,111300.0,111290.0,1.4273443]
[1756862227306,0.02667899,111300.0,111290.0,1.4273443]
[1756862229213,0.02667899,111300.0,111290.0,1.16555]
[1756862229421,0.28847329,111300.0,111290.0,1.4273443]
[1756862229718,0.02667899,111300.0,111290.0,1.4273443]
[1756862230218,0.28847329,111300.0,111290.0,1.4273443]
[1756862230405,0.28847329,111300.0,111290.0,1.16555]
[1756862230611,0.28847329,111300.0,111290.0,1.4273443]
[1756862231519,0.28847329,111300.0,111290.0,0.6014243]
[1756862231711,0.28847329,111300.0,111290.0,1.4272643]
[1756862232217,0.02667899,111300.0,111290.0,1.4272643]
[1756862232420,0.28847329,111300.0,111290.0,1.4272643]
[1756862235825,0.02667899,111300.0,111290.0,1.4272643]
[1756862236121,0.28847329,111300.0,111290.0,1.4272643]
[1756862237721,0.02667899,111300.0,111290.0,1.4272643]
[1756862237914,0.28847329,111300.0,111290.0,1.4272643]
[1756862239318,0.02667899,111300.0,111290.0,1.4272643]
[1756862239722,0.28847329,111300.0,111290.0,1.4272643]
[1756862240222,0.28847329,111300.0,111290.0,1.16547]
[1756862240523,0.28847329,111300.0,111290.0,1.4272643]
[1756862243425,0.28847329,111300.0,111290.0,0.6014243]
[1756862243729,0.28847329,111300.0,111290.0,1.4271043]
[1756862244429,0.02667899,111300.0,111290.0,1.4271043]
[1756862244824,0.28847329,111300.0,111290.0,1.4271043]
[1756862246323,0.02667899,111300.0,111290.0,1.4271043]
[1756862246519,0.28847329,111300.0,111290.0,1.4271043]
[1756862249128,0.02667899,111300.0,111290.0,1.4271043]
[1756862249328,0.02667899,111300.0,111290.0,1.1771043]
[1756862254338,0.02667899,111300.0,111290.0,1.4671043]
[1756862255833,0.02667899,111300.0,111290.0,1.4271043]
[1756862256739,0.02667899,111300.0,111290.0,1.4571043]
[1756862261440,0.02667899,111300.0,111290.0,1.54421007]
[1756862261634,0.02667899,111300.0,111290.0,1.29421007]
[1756862263440,0.004,111300.0,111290.0,1.85785937]
[1756862264439,0.004,111300.0,111290.0,1.76801007]
[1756862266840,0.004,111300.0,111290.0,0.94233007]
[1756862267044,0.004,111300.0,111290.0,1.76781007]
[1756862267844,0.004,111300.0,111290.0,0.94233007]
[1756862268033,0.004,111300.0,111290.0,1.76777007]
[1756862272651,0.004,111300.0,111290.0,1.41887]
[1756862272839,0.004,111300.0,111290.0,1.76773007]
[1756862273035,0.004,111300.0,111290.0,1.41883]
[1756862273235,0.004,111300.0,111290.0,1.76773007]
[1756862273443,0.02670148,111300.0,111290.0,1.76773007]
[1756862274642,0.02670148,111300.0,111290.0,0.59343]
[1756862274946,0.02670148,111300.0,111290.0,1.76773007]
[1756862278651,0.02670148,111300.0,111290.0,0.59343]
[1756862278848,0.62560155,111300.0,111290.0,0.05311]
[1756862279245,0.37560155,111300.0,111290.0,0.05311]
[1756862279547,0.37560155,111300.0,111290.0,0.09027]
[1756862279746,0.42388311,111300.0,111290.0,0.00559]
[1756862280853,0.49573935,111300.0,111290.0,0.00559]
[1756862281355,0.42388311,111300.0,111290.0,0.00559]
[1756862282757,0.67388311,111300.0,111290.0,0.00559]
[1756862283251,0.67388311,111300.0,111290.0,0.02926]
[1756862283454,0.67388311,111300.0,111290.0,0.00559]
[1756862284153,0.99560155,111300.0,111290.0,0.00559]
[1756862284348,1.51005708,111300.0,111290.0,0.00559]
[1756862284551,1.51005708,111300.0,111280.0,0.0001]
[1756862284755,0.69780014,111290.0,111280.0,0.0001]
[1756862284952,1.34050162,111290.0,111270.0,0.0001]
[1756862285156,0.39707032,111280.0,111270.0,0.0001]
[1756862285351,1.10766512,111280.0,111260.0,0.08474]
[1756862285552,0.34890007,111270.0,111260.0,0.08474]
[1756862285751,0.4197718,111270.0,111260.0,0.08464]
[1756862285949,0.4197718,111270.0,111260.0,0.04748]
[1756862286155,0.4197718,111270.0,111260.0,0.08464]
[1756862286358,0.37160155,111270.0,111260.0,0.08464]
[1756862286552,0.02270148,111270.0,111260.0,0.08464]
[1756862286851,0.40606357,111280.0,111270.0,0.08464]
[1756862287160,0.42900896,111280.0,111270.0,0.08464]
[1756862287354,1.10790903,111280.0,111260.0,0.0011]
[1756862287546,0.34890007,111270.0,111260.0,0.04858]
[1756862287860,0.37184546,111270.0,111260.0,0.04848]
[1756862288251,0.37484546,111270.0,111260.0,0.04848]
[1756862288451,0.37484546,111270.0,111260.0,0.04748]
[1756862289663,0.37884546,111270.0,111260.0,0.04748]
[1756862289960,0.37884546,111270.0,111260.0,0.08125]
[1756862290259,0.37884546,111270.0,111260.0,0.04748]
[1756862292361,0.37884546,111270.0,111260.0,0.08125]
[1756862292748,0.37884546,111270.0,111260.0,0.04748]
[1756862293555,0.95884546,111270.0,111250.0,0.0001]
[1756862293754,0.34890007,111260.0,111250.0,0.0001]
[1756862293949,0.68184546,111260.0,111240.0,0.08111]
[1756862294153,0.34890007,111250.0,111240.0,0.08111]
[1756862294357,0.37184546,111250.0,111240.0,0.08101]
[1756862295763,0.37384546,111250.0,111240.0,0.08101]
[1756862296464,0.37484546,111250.0,111240.0,0.08201]
[1756862300966,0.02594539,111250.0,111240.0,0.08201]
[1756862301162,0.37484546,111250.0,111240.0,0.08201]
[1756862305669,0.02594539,111250.0,111240.0,0.08201]
[1756862305967,0.37484546,111250.0,111240.0,0.08201]
[1756862306762,0.02594539,111250.0,111240.0,0.08201]
[1756862306965,0.37484546,111250.0,111240.0,0.08201]
[1756862312270,0.42301571,111250.0,111240.0,0.08201]
[1756862314470,0.37484546,111250.0,111240.0,0.08201]
[1756862316369,0.43921864,111250.0,111240.0,0.08201]
[1756862318775,0.09031857,111250.0,111240.0,0.08201]
[1756862318971,0.43921864,111250.0,111240.0,0.08201]
[1756862320277,0.09031857,111250.0,111240.0,0.43091007]
[1756862320475,0.07419374,111250.0,111240.0,0.43091007]
[1756862320676,0.07419374,111250.0,111240.0,1.25627007]
[1756862321266,0.02594539,111250.0,111240.0,1.50627007]
[1756862321472,0.02594539,111250.0,111240.0,2.01110436]
[1756862321779,0.02594539,111250.0,111240.0,1.48737]
[1756862322078,0.02594539,111250.0,111240.0,2.01110436]
[1756862327676,0.02594539,111250.0,111240.0,1.48737]
[1756862327870,0.02594539,111250.0,111240.0,2.01110436]
[1756862330585,0.02594539,111250.0,111240.0,2.27490436]
[1756862333382,0.003,111250.0,111240.0,2.27470436]
[1756862338495,0.003,111250.0,111240.0,2.27919436]
[1756862339191,0.003,111250.0,111240.0,2.02919436]
[1756862340990,0.003,111250.0,111240.0,0.6803]
[1756862341184,0.003,111250.0,111240.0,2.02907436]
[1756862341384,0.003,111250.0,111240.0,1.50534]
[1756862341687,0.003,111250.0,111240.0,2.02907436]
[1756862342091,0.003,111250.0,111240.0,1.20403436]
[1756862342289,0.26486718,111250.0,111240.0,1.5053]
[1756862342692,0.51486718,111250.0,111240.0,0.6803]
[1756862342902,0.53794287,111250.0,111240.0,1.2953]
[1756862344197,0.27607569,111250.0,111240.0,1.2953]
[1756862344499,0.53794287,111250.0,111240.0,1.2953]
[1756862344803,0.53794287,111250.0,111240.0,0.4703]
[1756862345100,0.53794287,111250.0,111240.0,0.47108]
[1756862345795,0.53794287,111250.0,111240.0,0.35108]
[1756862348502,0.53794287,111250.0,111240.0,0.08728]
[1756862350901,0.02607569,111250.0,111240.0,0.34914718]
[1756862351103,0.28794287,111250.0,111240.0,0.34914718]
[1756862351402,0.28794287,111250.0,111240.0,0.08728]
[1756862351701,0.28794287,111250.0,111240.0,0.34914718]
[1756862352103,0.28794287,111250.0,111240.0,0.08728]
[1756862352405,0.02607569,111250.0,111240.0,0.08728]
[1756862352593,0.28794287,111250.0,111240.0,0.08728]
[1756862352897,0.02607569,111250.0,111240.0,0.61101436]
[1756862353105,0.02607569,111250.0,111240.0,0.34914718]
[1756862353400,0.28794287,111250.0,111240.0,0.34914718]
[1756862354195,0.28794287,111250.0,111240.0,0.08728]
[1756862354395,0.28794287,111250.0,111240.0,0.34914718]
[1756862354595,0.28794287,111250.0,111240.0,0.08728]
[1756862354996,0.28794287,111250.0,111240.0,0.34914718]
[1756862355390,0.02607569,111250.0,111240.0,0.34914718]
[1756862355604,0.28794287,111250.0,111240.0,0.34914718]
[1756862355799,0.28794287,111250.0,111240.0,0.08728]
[1756862355998,0.28794287,111250.0,111240.0,0.34914718]
[1756862358108,0.28794287,111250.0,111240.0,0.08728]
[1756862358407,0.28794287,111250.0,111240.0,0.91224]
[1756862360513,0.28794287,111250.0,111240.0,0.9122]
[1756862360705,0.28794287,111250.0,111240.0,0.00549]
[1756862361007,0.28794287,111250.0,111240.0,0.05205]
[1756862361197,0.28794287,111250.0,111240.0,0.08712]
[1756862373117,0.28794287,111250.0,111240.0,0.34898718]
[1756862373118,0.02607569,111250.0,111240.0,0.34898718]
[1756862373307,0.31311553,111250.0,111240.0,0.34898718]
[1756862373511,0.31311553,111250.0,111240.0,0.08712]
[1756862373512,0.33619122,111250.0,111240.0,0.08712]
[1756862374531,0.33624699,111250.0,111240.0,0.08712]
[1756862376239,0.33624699,111250.0,111240.0,0.34898718]
[1756862376424,0.33624699,111250.0,111240.0,0.08712]
[1756862376934,0.28799864,111250.0,111240.0,0.08712]
[1756862377133,0.28799864,111250.0,111240.0,0.34898718]
[1756862377428,0.28799864,111250.0,111240.0,0.08712]
[1756862377633,0.33624699,111250.0,111240.0,0.34898718]
[1756862377828,0.28799864,111250.0,111240.0,0.34898718]
[1756862378025,0.02613146,111250.0,111240.0,0.34898718]
[1756862378334,0.02613146,111250.0,111240.0,0.96085436]
[1756862379033,0.02613146,111250.0,111240.0,1.20085436]
[1756862381836,0.02613146,111250.0,111240.0,0.67712]
[1756862382136,0.28799864,111250.0,111240.0,1.25188]
[1756862382435,0.28799864,111250.0,111240.0,1.51374718]
[1756862382824,0.02613146,111250.0,111240.0,1.51374718]
[1756862383024,0.28799864,111250.0,111240.0,1.51374718]
[1756862383531,0.02613146,111250.0,111240.0,1.25188]
[1756862384034,0.37545288,111250.0,111240.0,1.25188]
[1756862385038,0.02613146,111250.0,111240.0,1.25188]
[1756862385437,0.37545288,111250.0,111240.0,1.25188]
[1756862385738,0.02613146,111250.0,111240.0,1.25188]
[1756862387838,0.02613146,111250.0,111240.0,1.2518]
[1756862388139,0.37545288,111250.0,111240.0,1.2518]
[1756862388440,0.02613146,111250.0,111240.0,1.2518]
[1756862388641,0.37545288,111250.0,111240.0,1.2518]
[1756862390536,0.02613146,111250.0,111240.0,1.2518]
[1756862396746,0.37545288,111250.0,111240.0,1.2518]
[1756862397549,0.02613146,111250.0,111240.0,0.9118]
[1756862400942,0.02613146,111250.0,111240.0,0.08712]
[1756862400943,0.37545288,111250.0,111240.0,0.08712]
[1756862401353,0.62545288,111250.0,111240.0,0.08712]
[1756862402253,0.60232142,111250.0,111240.0,0.08712]
[1756862402448,0.62541207,111250.0,111240.0,0.08712]
[1756862402643,0.93541207,111250.0,111240.0,0.08712]
[1756862402848,0.98366042,111250.0,111240.0,0.05205]
[1756862403347,0.98366042,111250.0,111240.0,0.00549]
[1756862404151,0.98366042,111250.0,111240.0,0.02968]
[1756862404854,0.98366042,111250.0,111240.0,0.00549]